bitfinex/quotes_ETHUSD_20240714
["timestamp","ask_amount","ask_price","bid_price","bid_amount"]
[1720920980969,1.08499039,3193.7,3193.2,1.903]
[1720920981112,0.275,3193.8,3193.2,1.903]
[1720920981113,1.08499039,3193.6,3193.2,1.903]
[1720920981314,1.08499039,3193.5,3193.2,1.903]
[1720920981617,1.08499039,3193.4,3193.2,1.903]
[1720920981822,0.275,3193.8,3193.2,1.903]
[1720920981823,1.08499039,3193.7,3193.2,1.903]
[1720920983420,1.08499039,3193.7,3193.2,2.0933]
[1720920983913,0.275,3193.8,3193.2,2.0933]
[1720920984115,1.08499117,3193.6,3193.2,2.0933]
[1720920984442,0.275,3193.8,3193.2,2.0933]
[1720920984443,1.08499157,3193.5,3193.2,2.0933]
[1720920984748,1.08499157,3193.4,3193.2,2.0933]
[1720920984915,1.08499157,3193.7,3193.2,2.0933]
[1720920985122,1.08499157,3193.6,3193.2,2.0933]
[1720920985336,1.08499157,3193.5,3193.2,2.0933]
[1720920985510,1.08499157,3193.4,3193.2,2.0933]
[1720920985710,1.08499157,3193.3,3193.2,2.0933]
[1720920986012,1.08499157,3193.3,3193.2,1.903]
[1720920986409,1.08499157,3193.7,3193.2,1.903]
[1720920986648,0.275,3193.8,3193.2,1.903]
[1720920986649,3.48829157,3193.6,3193.2,1.903]
[1720920986944,3.48829157,3193.6,3192.9,3.0]
[1720920986945,1.08499157,3193.5,3192.8,1.903]
[1720920987109,2.4033,3193.6,3192.8,1.903]
[1720920987312,1.08515186,3193.5,3192.8,1.903]
[1720920987523,1.08515186,3193.4,3192.8,1.903]
[1720920987842,1.08515186,3193.3,3192.8,1.903]
[1720920988039,1.08515186,3193.5,3192.8,1.903]
[1720920988206,1.08515186,3193.4,3192.8,1.903]
[1720920988406,1.08515186,3193.5,3192.8,1.903]
[1720920988643,2.4033,3193.6,3192.8,1.903]
[1720920988644,1.08515186,3193.4,3192.8,1.903]
[1720920988810,1.08515186,3193.3,3192.8,1.903]
[1720920989011,1.08515186,3193.5,3192.8,1.903]
[1720920990663,2.4033,3193.6,3192.8,1.903]
[1720920990664,1.08518907,3193.4,3192.8,1.903]
[1720920990964,1.08518907,3193.3,3192.8,1.903]
[1720920991163,1.08518907,3193.2,3192.8,1.903]
[1720920991365,1.08518907,3193.1,3192.8,1.903]
[1720920991530,1.08518907,3193.0,3192.8,1.903]
[1720920991731,2.4033,3193.6,3192.8,1.903]
[1720920991732,1.08518907,3192.9,3192.8,1.903]
[1720920994070,1.08519787,3192.9,3192.8,1.903]
[1720920994704,1.08521889,3192.9,3192.8,1.903]
[1720920994979,0.275,3193.8,3192.9,2.2505]
[1720920995133,1.08507581,3193.7,3193.4,1.903]
[1720920995331,1.08507581,3193.6,3193.4,1.903]
[1720920995534,1.08507581,3193.5,3193.4,1.903]
[1720920995778,1.08507581,3193.5,3193.4,2.0933]
[1720920996573,1.08507581,3193.5,3193.4,1.903]
[1720920997166,1.0849754,3193.5,3193.4,1.903]
[1720920997370,0.275,3193.8,3193.4,1.903]
[1720920997578,1.08497517,3193.7,3193.4,1.903]
[1720920997876,1.08497517,3193.6,3193.4,1.903]
[1720920998077,1.08497517,3193.5,3193.4,2.0933]
[1720920998569,1.08497517,3193.5,3193.4,0.1903]
[1720920998773,1.08497517,3193.5,3193.4,0.792]
[1720921000482,2.4033,3194.3,3193.4,0.792]
[1720921000631,1.08497495,3193.5,3193.0,3.0]
[1720921000966,1.08497495,3193.4,3193.0,3.0]
[1720921001149,1.08497495,3194.2,3193.3,0.792]
[1720921001489,1.08497495,3194.1,3194.0,0.792]
[1720921003864,1.08497824,3194.1,3194.0,0.792]
[1720921004767,1.08497824,3194.1,3193.8,0.792]
[1720921004949,2.4033,3194.3,3193.8,0.792]
[1720921004950,1.08497824,3194.0,3193.8,0.792]
[1720921005149,0.792,3194.7,3192.3,2.4271]
[1720921005150,3.41345923,3193.9,3192.3,2.4271]
[1720921005373,1.08497824,3193.8,3193.0,0.792]
[1720921005582,1.15105923,3193.7,3193.0,0.792]
[1720921005903,1.08497824,3193.6,3193.2,0.792]
[1720921006099,1.15105923,3193.8,3193.2,0.792]
[1720921006402,1.15105923,3193.7,3193.2,0.792]
[1720921006607,3.34737824,3193.6,3192.5,1.903]
[1720921006753,1.15105923,3193.5,3192.5,1.903]
[1720921006948,1.08497824,3193.4,3192.5,1.903]
[1720921007151,2.2624,3193.3,3192.5,1.903]
[1720921007470,1.08524046,3193.2,3192.5,1.903]
[1720921007655,2.2624,3193.3,3192.5,1.903]
[1720921007854,1.08524549,3193.2,3192.5,1.903]
[1720921009360,1.08524549,3193.2,3192.6,0.06264316]
[1720921009683,2.2624,3193.6,3192.5,4.3301]
[1720921009684,1.08524549,3193.1,3192.5,4.3301]
[1720921009900,2.2624,3193.6,3192.6,0.43301]
[1720921009901,1.08524549,3193.0,3192.6,0.43301]
[1720921010070,2.2624,3193.6,3192.6,0.43301]
[1720921010071,1.08524549,3192.9,3192.6,0.43301]
[1720921010272,1.08524549,3192.8,3192.6,0.49564668]
[1720921010487,1.08515744,3192.7,3192.6,0.49564668]
[1720921010662,1.08515744,3192.7,3192.6,0.43301]
[1720921010855,1.08515087,3192.7,3192.6,0.43301]
[1720921013897,2.2624,3193.6,3192.6,0.43301]
[1720921014067,1.08517093,3193.5,3192.6,0.43301]
[1720921014394,1.08517093,3193.4,3192.6,0.43301]
[1720921014581,1.08517093,3193.3,3192.6,0.43301]
[1720921014779,2.2624,3193.6,3192.6,0.43301]
[1720921014780,1.08517093,3193.2,3192.6,0.43301]
[1720921014965,2.2624,3193.6,3192.6,0.43301]
[1720921014966,1.08517093,3193.5,3192.6,0.43301]
[1720921015171,1.08517093,3193.4,3192.6,0.43301]
[1720921015393,1.08517093,3193.3,3192.6,0.43301]
[1720921015601,1.08517093,3193.2,3192.6,0.43301]
[1720921015761,1.08517093,3193.5,3192.6,0.43301]
[1720921016091,1.08517093,3193.5,3192.7,0.06263556]
[1720921017272,1.08516804,3193.4,3192.7,0.06263556]
[1720921017475,1.08516804,3193.3,3192.7,0.06263556]
[1720921017663,1.08516804,3193.5,3192.7,0.06263556]
[1720921017859,1.08516804,3193.5,3192.6,0.43301]
[1720921018066,1.08516804,3193.9,3192.9,1.903]
[1720921018267,1.08516804,3193.8,3192.9,1.903]
[1720921018477,1.08516804,3193.7,3192.9,1.903]
[1720921018662,1.08516804,3193.6,3192.9,1.903]
[1720921018863,1.08516804,3193.5,3192.9,1.903]
[1720921019097,1.08516804,3193.4,3192.9,1.903]
[1720921019269,1.08516804,3193.3,3192.9,1.903]
[1720921019469,1.08516804,3193.2,3192.9,1.903]
[1720921019705,1.08516804,3193.1,3192.9,1.903]
[1720921020016,1.08516804,3193.0,3192.9,1.903]
[1720921020672,0.32822322,3193.7,3193.0,2.50541]
[1720921020871,0.32822322,3193.7,3192.9,4.6464311]
[1720921020872,1.08497862,3193.6,3193.1,5.03200908]
[1720921021074,0.32822322,3193.7,3192.9,2.7434311]
[1720921021075,0.32822322,3193.7,3193.5,1.903]
[1720921021388,1.08480989,3193.6,3193.5,1.903]
[1720921021596,1.08480989,3193.6,3193.5,2.840733]
[1720921021923,1.08480989,3193.6,3193.5,1.5747947]
[1720921023031,2.3825,3194.8,3193.5,1.5747947]
[1720921023228,0.32819939,3194.3,3193.5,1.5747947]
[1720921023527,1.0848127,3194.2,3193.5,4.5747947]
[1720921023700,1.0848127,3194.1,3193.9,1.903]
[1720921023901,1.0848127,3194.0,3193.9,1.903]
[1720921024136,1.0847777,3194.0,3193.9,1.903]
[1720921025018,1.0847777,3194.0,3193.9,1.57480778]
[1720921026335,2.3825,3194.8,3193.9,1.57480778]
[1720921026521,1.0847859,3194.0,3193.9,1.57480778]
[1720921027217,1.0847859,3194.7,3193.9,1.57480778]
[1720921027412,2.3825,3194.8,3193.9,1.57480778]
[1720921027413,1.0847859,3194.6,3193.9,1.57480778]
[1720921027710,1.0847859,3194.5,3193.9,1.57480778]
[1720921027925,1.0847859,3194.4,3193.9,1.57480778]
[1720921028129,1.0847859,3194.7,3193.9,1.57480778]
[1720921028648,1.0847859,3194.7,3194.5,0.792]
[1720921029070,1.0753637,3194.7,3194.5,0.792]
[1720921029652,2.3825,3194.8,3194.5,0.792]
[1720921032865,0.1165051,3194.9,3194.7,0.792]
[1720921035476,2.3825,3194.8,3194.3,0.792]
[1720921035842,2.3825,3194.8,3193.5,2.464]
[1720921035843,0.06608099,3194.7,3193.5,2.464]
[1720921036044,0.06608099,3194.7,3193.9,0.792]
[1720921036045,2.3825,3194.6,3193.9,0.792]
[1720921036245,0.06608099,3194.5,3193.9,0.792]
[1720921036700,0.06608099,3194.5,3193.2,1.902]
[1720921036846,2.3825,3194.6,3193.2,1.902]
[1720921039076,1.08497344,3194.5,3193.2,1.902]
[1720921039300,3.57877344,3194.4,3193.2,1.902]
[1720921039499,1.08497344,3194.3,3193.2,1.902]
[1720921039696,1.08499735,3194.2,3193.2,2.6386]
[1720921039860,1.08499735,3194.1,3193.2,2.6386]
[1720921040058,1.08499735,3194.3,3193.2,2.6386]
[1720921040260,1.08499735,3194.2,3193.2,2.6386]
[1720921040465,1.08499735,3194.1,3193.2,2.6386]
[1720921040672,1.08499735,3194.0,3193.3,0.56386]
[1720921040893,1.08499735,3193.9,3193.3,0.56386]
[1720921041194,1.08499735,3193.8,3193.3,0.56386]
[1720921041393,1.08499735,3193.7,3193.3,0.56386]
[1720921041576,1.08499735,3193.6,3193.2,1.902]
[1720921041784,1.08497508,3193.5,3193.2,1.902]
[1720921041983,2.4938,3194.4,3193.2,1.902]
[1720921042186,1.08494727,3194.3,3193.6,1.902]
[1720921042394,1.08494727,3194.2,3193.6,1.902]
[1720921042563,1.08494727,3194.1,3193.6,1.902]
[1720921042764,2.4938,3194.4,3193.6,2.0922]
[1720921042765,1.08494727,3194.0,3193.6,2.0922]
[1720921042964,2.4938,3194.4,3193.6,2.0922]
[1720921043202,1.08490771,3194.3,3193.6,2.0922]
[1720921043378,1.08490771,3194.2,3193.6,2.0922]
[1720921043577,1.08490771,3194.1,3193.6,2.0922]
[1720921043803,1.08490771,3194.0,3193.6,2.0922]
[1720921043977,1.08490771,3193.9,3193.6,2.0922]
[1720921044182,1.08490771,3193.8,3193.6,1.902]
[1720921044393,1.1509887,3194.3,3193.6,1.902]
[1720921044692,1.08490771,3194.2,3193.3,2.4249]
[1720921044890,1.08490771,3194.3,3193.3,2.4249]
[1720921045103,1.08490771,3194.3,3193.4,0.43269]
[1720921046417,2.4938,3194.4,3193.4,0.43269]
[1720921046574,1.08495363,3194.3,3193.4,0.43269]
[1720921046784,2.4938,3194.4,3193.4,0.43269]
[1720921046986,1.08495656,3194.3,3193.4,0.43269]
[1720921047234,1.08495656,3194.2,3193.5,0.285759]
[1720921047397,1.08495656,3194.1,3193.6,1.902]
[1720921047595,1.08495656,3194.0,3193.6,1.902]
[1720921047814,1.08495656,3193.9,3193.6,1.902]
[1720921048022,1.08495656,3193.8,3193.6,1.902]
[1720921048195,1.08495656,3193.7,3193.6,2.1640449]
[1720921049825,1.08488898,3193.7,3193.6,2.1640449]
[1720921049984,1.08493254,3193.7,3193.6,2.1640449]
[1720921052624,1.08493254,3193.7,3193.2,1.902]
[1720921052936,1.08493254,3193.6,3193.2,1.902]
[1720921053226,2.4938,3194.2,3193.2,1.902]
[1720921053434,1.08501621,3194.1,3193.2,1.902]
[1720921053734,1.08501621,3194.0,3193.2,2.63469]
[1720921054024,1.08501621,3193.9,3193.2,2.63469]
[1720921054251,1.08501621,3193.8,3193.2,2.63469]
[1720921054425,1.08501621,3193.7,3193.3,0.563469]
[1720921054629,1.08501621,3193.6,3193.2,2.63469]
[1720921054831,1.08501621,3193.5,3193.2,2.63469]
[1720921055139,1.08501621,3193.4,3193.2,2.63469]
[1720921055337,1.08501621,3193.3,3193.2,2.63469]
[1720921055507,1.08501621,3193.3,3193.2,5.63469]
[1720921056521,1.08501014,3193.3,3193.2,5.63469]
[1720921058153,1.08501014,3193.3,3193.2,8.04239]
[1720921058624,1.08501014,3193.3,3193.2,6.93239]
[1720921059837,2.3645,3194.6,3193.2,6.93239]
[1720921060123,1.08491826,3194.5,3194.1,0.792]
[1720921060433,1.08491515,3194.4,3194.1,0.792]
[1720921060614,1.08491515,3194.3,3194.1,0.792]
[1720921060817,1.08491515,3194.2,3194.1,0.792]
[1720921063017,2.3645,3194.6,3194.1,0.792]
[1720921063261,1.08491408,3194.2,3194.1,0.792]
[1720921063560,1.08491408,3194.5,3194.1,0.792]
[1720921063723,1.08491408,3194.4,3194.1,0.792]
[1720921063920,1.08491408,3194.3,3194.1,0.792]
[1720921064168,1.08491408,3194.2,3194.1,0.792]
[1720921066569,2.3645,3194.6,3194.1,0.792]
[1720921066739,1.08493236,3194.5,3194.1,0.792]
[1720921066945,1.08493236,3194.4,3194.1,0.792]
[1720921067262,1.08493236,3194.3,3194.1,0.792]
[1720921067466,1.08493236,3194.2,3194.1,0.792]
[1720921068669,1.08493236,3194.2,3193.9,0.792]
[1720921068971,1.08493236,3194.1,3193.9,0.792]
[1720921069171,1.08493236,3194.0,3193.9,0.792]
[1720921070091,1.08495956,3194.0,3193.9,0.792]
[1720921070606,1.08496075,3194.0,3193.9,0.792]
[1720921073155,2.3645,3194.6,3193.9,0.792]
[1720921073358,1.08488036,3194.5,3194.2,0.792]
[1720921073575,1.08488036,3194.4,3194.2,0.792]
[1720921073778,1.08488036,3194.3,3194.2,0.792]
[1720921076803,1.08488136,3194.3,3194.2,0.792]
[1720921077170,2.3645,3194.6,3194.2,0.792]
[1720921077370,1.08488223,3194.5,3194.2,0.792]
[1720921077671,1.08488223,3194.4,3194.2,0.792]
[1720921077874,1.08488223,3194.3,3194.2,0.792]
[1720921078898,1.41304973,3194.3,3194.2,0.792]
[1720921079211,1.41304973,3194.3,3194.2,0.46383511]
[1720921079908,1.08488223,3194.3,3194.2,0.46383511]
[1720921080110,1.08476112,3194.3,3194.2,0.46383511]
[1720921080553,0.328139,3194.6,3194.2,0.46383511]
[1720921080672,1.08472335,3194.3,3193.8,2.47031103]
[1720921080875,1.08472335,3194.2,3193.9,0.30964073]
[1720921081096,1.08472335,3194.5,3194.1,0.792]
[1720921081306,1.08474224,3194.4,3194.1,0.06260768]
[1720921081487,0.328139,3194.6,3194.1,0.06260768]
[1720921081488,0.328139,3194.6,3194.3,0.792]
[1720921081793,1.08474263,3194.5,3194.1,0.06260768]
[1720921081992,0.328139,3194.6,3194.4,0.46387322]
[1720921082174,1.0847428,3194.5,3194.1,0.06260768]
[1720921082374,0.1165051,3194.9,3194.4,0.792]
[1720921082629,1.08473837,3194.8,3194.6,0.792]
[1720921082786,1.08473837,3194.7,3194.6,0.792]
[1720921083371,1.0847352,3194.7,3194.6,0.792]
[1720921085294,1.41283626,3194.7,3194.6,0.792]
[1720921085920,0.32810106,3194.7,3194.6,0.792]
[1720921086215,1.41270418,3194.7,3194.6,0.792]
[1720921087011,1.41270418,3194.7,3194.6,3.1008]
[1720921088218,1.08460312,3194.7,3194.6,3.1008]
[1720921088518,1.08460312,3194.7,3194.6,3.661317]
[1720921088915,1.08460312,3194.7,3194.6,3.386317]
[1720921089326,1.08450026,3194.7,3194.6,2.869317]
[1720921089489,1.08450026,3194.7,3194.6,3.1008]
[1720921091585,1.08450026,3194.7,3194.6,0.792]
[1720921092211,1.08450026,3194.7,3194.6,3.1008]
[1720921092606,1.08454517,3194.7,3194.6,3.1008]
[1720921092999,0.1165051,3194.9,3194.6,3.1008]
[1720921093204,0.1165051,3194.9,3194.8,0.792]
[1720921093607,1.20106285,3194.9,3194.8,0.792]
[1720921093919,1.20106285,3194.9,3194.8,1.10833986]
[1720921095716,0.1165051,3194.9,3194.8,1.10833986]
[1720921095910,1.20099264,3194.9,3194.8,1.10833986]
[1720921096102,0.1165051,3194.9,3194.8,1.10833986]
[1720921096313,1.20099121,3194.9,3194.8,1.10833986]
[1720921098289,1.20099121,3194.9,3194.8,0.792]
[1720921098914,0.1165051,3194.9,3194.8,0.792]
[1720921099120,0.1165051,3194.9,3194.8,0.85459345]
[1720921099121,1.20103865,3194.9,3194.8,0.85459345]
[1720921099388,1.20103865,3194.9,3194.8,0.792]
[1720921099389,0.1165051,3194.9,3194.8,0.792]
[1720921099547,0.1165051,3194.9,3194.8,0.85458701]
[1720921099695,0.1165051,3194.9,3194.8,1.17092571]
[1720921101802,2.2614,3196.3,3194.9,4.82377]
[1720921102001,2.2614,3196.3,3195.1,2.3198]
[1720921102002,1.08424611,3196.2,3195.1,2.3198]
[1720921102225,2.2614,3196.3,3195.1,2.3198]
[1720921102437,1.08427148,3196.2,3195.9,0.792]
[1720921102636,2.2614,3196.3,3195.9,0.792]
[1720921102812,1.08429383,3196.1,3195.9,0.792]
[1720921103127,1.08431993,3196.0,3195.9,0.792]
[1720921105754,3.34571993,3196.0,3195.9,0.792]
[1720921105961,3.34572831,3196.0,3195.9,0.792]
[1720921106257,3.34572831,3196.0,3195.7,0.792]
[1720921106551,1.1504093,3195.9,3195.5,0.792]
[1720921106850,1.08432831,3195.8,3195.7,0.792]
[1720921107060,1.08432831,3195.9,3195.7,0.792]
[1720921109276,0.06608099,3195.9,3195.7,0.792]
[1720921109432,1.08443572,3195.8,3195.7,0.792]
[1720921112767,1.08431361,3195.8,3195.7,0.792]
[1720921116078,2.2614,3196.4,3195.7,0.792]
[1720921116282,1.08431439,3196.3,3196.2,0.792]
[1720921116595,1.08429652,3196.3,3196.2,0.792]
[1720921118880,1.08429652,3196.3,3196.0,0.792]
[1720921119053,1.08429652,3196.2,3196.0,0.792]
[1720921119267,2.2614,3196.4,3196.0,0.792]
[1720921119536,1.08427613,3196.3,3196.0,0.792]
[1720921121112,1.08427613,3196.3,3195.1,2.2511]
[1720921121327,0.06608099,3196.9,3195.8,0.792]
[1720921121328,3.43097613,3196.2,3195.8,0.792]
[1720921121479,1.08427613,3196.1,3195.8,0.792]
[1720921122583,2.3467,3196.2,3195.8,0.792]
[1720921122784,1.08437746,3196.1,3195.8,0.792]
[1720921123210,0.32804333,3196.0,3195.8,0.792]
[1720921123414,1.08437746,3195.9,3195.8,0.792]
[1720921126017,0.32804333,3196.0,3195.8,0.242]
[1720921126224,1.15046089,3195.9,3194.8,2.2511]
[1720921126519,1.0843799,3195.8,3195.5,0.792]
[1720921126818,1.0843799,3195.7,3195.5,0.792]
[1720921127031,1.0843799,3195.8,3195.5,0.792]
[1720921127231,1.0843799,3195.8,3194.8,2.2511]
[1720921127432,0.32804333,3196.0,3195.7,0.792]
[1720921127590,1.08441894,3195.9,3195.4,2.2511]
[1720921127786,0.32804333,3196.0,3195.8,0.792]
[1720921128015,1.08437135,3195.9,3195.8,0.792]
[1720921128243,1.08437135,3195.9,3195.8,0.46394615]
[1720921129428,1.08436183,3195.9,3195.8,0.46394615]
[1720921129823,1.08435335,3195.9,3195.8,0.46394615]
[1720921131262,1.08435335,3195.9,3195.8,0.13590684]
[1720921132526,2.3467,3196.7,3195.8,0.13590684]
[1720921132720,2.3467,3196.7,3195.4,2.2511]
[1720921132721,1.08426289,3196.6,3196.2,0.792]
[1720921132947,1.08426289,3196.5,3196.2,0.792]
[1720921133287,1.08426289,3196.4,3196.2,0.792]
[1720921133461,1.08426289,3196.3,3196.2,0.792]
[1720921135853,0.32804045,3196.8,3196.2,0.792]
[1720921136098,0.32804045,3196.8,3196.5,0.792]
[1720921136099,1.08412137,3196.7,3196.5,0.792]
[1720921136283,1.08412137,3196.6,3196.5,0.792]
[1720921137289,1.08412137,3196.6,3196.3,0.792]
[1720921137503,1.08412137,3196.5,3196.3,0.792]
[1720921137679,1.08412137,3196.4,3195.5,2.2511]
[1720921138002,1.08412137,3196.3,3196.2,0.792]
[1720921138172,1.08412137,3196.5,3196.2,0.792]
[1720921138507,2.3467,3196.6,3195.5,2.2511]
[1720921138508,1.15020236,3196.4,3196.0,0.792]
[1720921138706,1.08412137,3196.3,3196.0,0.792]
[1720921139216,2.3467,3196.6,3196.0,0.792]
[1720921139506,1.08423866,3196.5,3196.0,0.792]
[1720921139713,2.41278099,3196.6,3196.0,0.792]
[1720921139714,1.08423866,3196.4,3196.0,0.792]
[1720921140027,1.08423866,3196.3,3196.0,0.792]
[1720921140178,1.08423866,3196.2,3196.0,0.792]
[1720921140379,1.08423866,3196.1,3196.0,0.792]
[1720921141774,1.08421242,3196.1,3196.0,0.792]
[1720921142240,2.3467,3196.6,3196.0,0.792]
[1720921142399,1.08420993,3196.5,3196.0,0.792]
[1720921142723,1.08420993,3196.4,3196.0,0.792]
[1720921142877,1.08420993,3196.3,3196.0,0.792]
[1720921143083,1.08420993,3196.2,3196.0,0.792]
[1720921143440,0.32804045,3196.8,3196.1,0.792]
[1720921143718,1.08416426,3196.7,3196.3,0.792]
[1720921144016,1.08416426,3196.6,3196.3,0.792]
[1720921144217,1.08416426,3196.5,3196.3,0.792]
[1720921144403,0.32804045,3196.8,3196.3,0.792]
[1720921144404,1.08416426,3196.4,3196.3,0.792]
[1720921144933,0.32804045,3196.8,3196.3,0.792]
[1720921145141,1.08415022,3196.7,3196.3,0.792]
[1720921145337,1.08415022,3196.6,3196.3,0.792]
[1720921145632,1.08415022,3196.5,3196.3,0.792]
[1720921145835,1.08415022,3196.4,3196.3,0.76687689]
[1720921145995,1.08415022,3196.7,3196.3,0.792]
[1720921146326,1.08415022,3196.6,3196.3,0.792]
[1720921146638,1.08415022,3196.5,3196.0,2.3623]
[1720921146934,1.08415022,3196.4,3196.0,2.3623]
[1720921147154,0.32804045,3196.8,3196.3,0.792]
[1720921147312,1.08412923,3196.7,3196.5,0.792]
[1720921147512,1.08412923,3196.6,3196.5,0.792]
[1720921148373,2.4598,3197.2,3196.5,0.792]
[1720921148506,1.08409103,3197.1,3196.5,2.3623]
[1720921148711,1.08409103,3197.0,3196.9,0.792]
[1720921151511,2.4598,3197.5,3196.9,0.792]
[1720921151713,1.08395584,3197.4,3196.9,0.792]
[1720921151935,1.08395584,3197.3,3196.9,0.792]
[1720921152154,1.08395584,3197.2,3196.9,0.792]
[1720921152355,1.08395584,3197.2,3195.8,0.06256335]
[1720921152356,2.4598,3197.3,3195.8,2.3623]
[1720921152540,2.4598,3197.0,3196.2,0.792]
[1720921152752,1.63395584,3196.9,3196.2,0.792]
[1720921153054,2.4598,3196.7,3196.2,0.792]
[1720921153253,1.15003683,3196.6,3196.2,0.792]
[1720921153431,1.08395584,3196.5,3196.2,0.792]
[1720921153635,0.06608099,3196.4,3196.2,0.792]
[1720921153829,1.08395584,3196.3,3196.2,0.792]
[1720921154034,1.08395584,3196.3,3195.8,0.792]
[1720921154230,1.08395584,3196.5,3196.0,0.792]
[1720921154464,1.08395584,3196.4,3196.0,0.792]
[1720921154727,1.08395584,3196.6,3196.0,0.792]
[1720921154932,1.63425519,3196.5,3196.0,0.792]
[1720921155172,1.0842354,3196.4,3196.2,0.792]
[1720921155385,1.08419424,3196.3,3196.2,0.792]
[1720921156435,1.08422185,3196.3,3196.2,0.792]
[1720921160553,1.08417798,3196.3,3196.2,0.792]
[1720921161053,1.08415939,3196.3,3196.2,0.792]
[1720921161655,3.0,3197.1,3196.2,0.792]
[1720921161866,2.3898,3197.2,3196.4,0.792]
[1720921161867,1.0841499,3197.0,3196.4,0.792]
[1720921162067,1.0841499,3196.9,3195.7,2.4907]
[1720921162265,1.0841499,3196.8,3196.4,0.792]
[1720921162598,1.0841499,3196.7,3196.4,0.792]
[1720921162902,1.0841499,3196.6,3196.4,0.792]
[1720921163049,1.0841499,3196.5,3196.4,0.792]
[1720921163476,1.0841499,3197.0,3196.4,0.792]
[1720921163791,1.6341499,3196.9,3196.4,0.792]
[1720921163963,1.0841499,3196.8,3196.4,0.792]
[1720921164289,0.55,3196.9,3196.4,0.792]
[1720921164290,1.0841499,3196.7,3196.4,0.792]
[1720921164472,1.0841499,3196.6,3196.4,0.792]
[1720921164689,1.0841499,3196.5,3196.4,0.792]
[1720921165091,1.0841499,3196.8,3196.4,0.792]
[1720921165399,1.0841499,3196.7,3196.4,0.792]
[1720921165600,0.55,3196.9,3196.4,0.792]
[1720921165799,1.08414634,3196.6,3196.4,0.792]
[1720921166115,1.08414634,3196.5,3196.4,0.792]
[1720921166707,1.08414603,3196.5,3196.4,0.792]
[1720921168006,1.08414603,3196.5,3195.9,0.792]
[1720921168303,1.08414603,3196.5,3195.2,2.4907]
[1720921168304,1.08414603,3196.4,3195.7,0.792]
[1720921168507,1.08414603,3196.3,3195.9,0.792]
[1720921168707,1.08414603,3196.2,3195.9,0.792]
[1720921168921,1.15022702,3196.5,3195.9,0.792]
[1720921169073,1.08414603,3196.4,3195.9,0.792]
[1720921169273,0.06608099,3196.5,3195.9,0.792]
[1720921169609,1.08431058,3196.4,3195.9,0.792]
[1720921169916,1.08431316,3196.3,3195.9,0.792]
[1720921170212,1.08431316,3196.2,3195.9,0.792]
[1720921170511,1.08431316,3196.1,3195.9,0.792]
[1720921170715,1.08431316,3196.5,3195.9,0.792]
[1720921171021,1.08431316,3196.4,3195.9,0.792]
[1720921171203,1.08431316,3196.3,3195.9,0.792]
[1720921171510,1.08431316,3196.2,3195.9,0.792]
[1720921171700,1.08431316,3196.1,3195.9,0.792]
[1720921171898,1.08431316,3196.5,3195.9,0.792]
[1720921172102,1.08431316,3196.4,3195.9,0.792]
[1720921172409,1.08431316,3196.3,3195.9,0.792]
[1720921172606,1.08431316,3196.2,3195.9,0.792]
[1720921172817,0.06608099,3196.4,3195.9,0.792]
[1720921172973,1.08433844,3196.3,3195.9,0.792]
[1720921173170,1.08433844,3196.2,3195.9,0.792]
[1720921173370,1.08433844,3196.1,3195.9,0.792]
[1720921173612,1.08433844,3196.0,3195.7,0.792]
[1720921173815,1.08433844,3196.3,3195.7,0.792]
[1720921174118,1.15041943,3196.2,3195.7,0.792]
[1720921174300,1.08433844,3196.1,3195.7,0.792]
[1720921175130,3.47413844,3196.0,3194.7,2.4907]
[1720921175296,1.15041943,3195.9,3195.3,0.792]
[1720921175619,1.08433844,3195.8,3195.3,0.792]
[1720921176191,2.3898,3196.0,3195.3,0.792]
[1720921176192,1.08449702,3195.7,3195.3,0.792]
[1720921176412,1.08449702,3195.6,3195.5,0.792]
[1720921178790,1.41259542,3195.6,3195.5,0.792]
[1720921179677,0.3280984,3195.6,3195.5,0.792]
[1720921180014,1.41259356,3195.6,3195.5,0.792]
[1720921180216,1.41259356,3195.6,3195.5,0.46391029]
[1720921182132,1.41259356,3195.6,3195.5,0.75496132]
[1720921182410,1.41259356,3195.6,3195.5,3.20156132]
[1720921182617,1.08449516,3195.6,3195.5,3.20156132]
[1720921183016,2.2586,3196.7,3195.5,3.20156132]
[1720921183311,1.08430147,3196.6,3195.9,0.792]
[1720921183525,1.63429503,3196.5,3196.1,0.792]
[1720921183710,1.08429503,3196.4,3196.1,0.792]
[1720921183887,1.08429503,3196.3,3196.1,0.792]
[1720921184095,1.08428585,3196.2,3196.1,0.792]
[1720921186277,1.08421257,3196.2,3196.1,0.46395983]
[1720921186473,1.08421276,3196.8,3196.1,0.46395983]
[1720921186704,1.08421276,3196.7,3196.1,0.46395983]
[1720921186876,1.08421276,3196.6,3196.1,0.46395983]
[1720921187092,1.08421276,3196.5,3196.1,0.46395983]
[1720921187305,1.08421276,3196.4,3196.1,0.46395983]
[1720921187618,1.08421276,3196.3,3196.1,0.46395983]
[1720921187788,1.08421276,3196.8,3196.1,0.46395983]
[1720921187980,1.08421276,3196.7,3196.1,0.46395983]
[1720921188181,1.08421276,3196.8,3196.1,0.46395983]
[1720921188416,1.08421276,3196.7,3196.1,0.46395983]
[1720921188622,1.08421276,3196.6,3196.1,0.46395983]
[1720921188838,1.08421276,3196.8,3196.1,0.46395983]
[1720921189120,1.08421276,3196.7,3196.1,0.46395983]
[1720921189424,1.08421276,3196.6,3196.1,0.46395983]
[1720921189605,0.32805396,3196.9,3196.1,0.46395983]
[1720921189828,1.63423119,3196.8,3195.9,0.792]
[1720921190041,1.08423119,3196.7,3195.9,0.792]
[1720921190344,1.08423119,3196.6,3195.9,0.792]
[1720921190503,1.08423119,3196.7,3195.9,0.792]
[1720921190703,1.08423119,3196.6,3195.9,0.792]